[Event "2nd Namma Bengaluru Open-B 2025"]
[Site "Bengaluru"]
[Date "2025.04.12"]
[Round "8.9"]
[White "Borse Vaibhav"]
[Black "Ishan Warudkar"]
[Result "1-0"]
[Annotator "NA"]
[ECO "B70"]
[WhiteElo "1778"]
[BlackElo "1832"]
[PlyCount "71"]
[EventDate "2025.04.10"]
[EventType "swiss"]
[EventCountry "IND"]
[SourceTitle "playchess.com"]
[Source "ChessBase"]
[SourceQuality "1"]
[TimeControl "3600+30"]

1. e4 {[%emt 0:00:24]} c5 {[%emt 0:01:21]} 2. Nf3 {[%emt 0:00:06]} g6 {[%emt 0:00:54]} 3. d4 {[%emt 0:00:44]} cxd4 {[%emt 0:00:53]} 4. Nxd4 {[%emt 0:01:23]} Bg7 {[%emt 0:01:25]} 5. Nc3 {[%emt 0:00:05]} Nc6 {[%emt 0:01:14]} 6. Nb3 {[%emt 0:00:04]} Nf6 {[%emt 0:01:14]} 7. Be2 {[%emt 0:00:37]} O-O {[%emt 0:01:20]} 8. O-O {[%emt 0:00:07]} d6 {[%emt 0:01:11]} 9. Bg5 {[%emt 0:00:07]} Rb8 {[%emt 0:02:41]} 10. Kh1 {[%emt 0:02:29]} b5 {[%emt 0:00:51]} 11. Nxb5 {[%emt 0:13:03]} Nxe4 {[%emt 0:00:14]} 12. Be3 {[%emt 0:00:14]} a6 {[%emt 0:05:28]} 13. N5d4 {[%emt 0:02:29]} Nxd4 {[%emt 0:01:49]} 14. Bxd4 {[%emt 0:00:10]} e5 {[%emt 0:00:40]} 15. Bf3 {[%emt 0:01:13]} Bb7 {[%emt 0:06:50]} 16. Bxe4 {[%emt 0:03:00]} Bxe4 {[%emt 0:00:03]} 17. Qe2 {[%emt 0:00:10]} f5 {[%emt 0:04:16]} 18. Bc3 {[%emt 0:00:22]} Bc6 {[%emt 0:02:30]} 19. Qc4+ {[%emt 0:00:19]} d5 {[%emt 0:01:13]} 20. Qxc6 {[%emt 0:00:12]} d4 {[%emt 0:00:01]} 21. Ba5 {[%emt 0:01:31]} Qh4 {[%emt 0:00:25]} 22. Bc7 {[%emt 0:01:38]} Rbe8 {[%emt 0:01:08]} 23. Bd6 {[%emt 0:01:03]} Qf6 {[%emt 0:01:40]} 24. f4 {[%emt 0:04:26]} exf4 {[%emt 0:01:54]} 25. Qc4+ {[%emt 0:01:26]} Rf7 {[%emt 0:00:02]} 26. Bxf4 {[%emt 0:00:16]} g5 {[%emt 0:03:09]} 27. Bg3 {[%emt 0:00:47]} Re4 {[%emt 0:03:51]} 28. Rae1 {[%emt 0:03:22]} Rxe1 {[%emt 0:03:17]} 29. Rxe1 {[%emt 0:00:15]} h5 {[%emt 0:00:48]} 30. Qe6 {[%emt 0:05:27]} Qxe6 {[%emt 0:03:01]} 31. Rxe6 {[%emt 0:00:01]} f4 {[%emt 0:00:01]} 32. Bf2 {[%emt 0:00:12]} Rc7 {[%emt 0:00:19]} 33. Bxd4 {[%emt 0:01:35]} Kf7 {[%emt 0:00:40]} 34. Rxa6 {[%emt 0:01:04]} Bxd4 {[%emt 0:02:44]} 35. Nxd4 {[%emt 0:00:10]} g4 {[%emt 0:00:10]} 36. Kg1 {[%emt 0:01:17]} 1-0

[Event "2nd Namma Bengaluru Open-B 2025"]
[Site "Bengaluru"]
[Date "2025.04.12"]
[Round "8.10"]
[White "Abhijith U"]
[Black "Gaigore Sanskar"]
[Result "0-1"]
[Annotator "NA"]
[ECO "D00"]
[WhiteElo "1821"]
[BlackElo "1752"]
[PlyCount "79"]
[EventDate "2025.04.10"]
[EventType "swiss"]
[EventCountry "IND"]
[SourceTitle "playchess.com"]
[Source "ChessBase"]
[SourceQuality "1"]
[TimeControl "3600+30"]

1. d4 {[%emt 1:01:00]} Nf6 {[%emt 1:01:00]} 2. Nc3 {[%emt 0:00:30]} d5 {[%emt 0:00:30]} 3. Bf4 {[%emt 0:00:30]} a6 {[%emt 0:00:30]} 4. e3 {[%emt 0:00:30]} g6 {[%emt 0:00:30]} 5. h4 {[%emt 0:00:30]} Bg7 {[%emt 0:00:30]} 6. h5 {[%emt 0:00:30]} Nxh5 {[%emt 0:00:30]} 7. Rxh5 {[%emt 0:00:30]} gxh5 {[%emt 0:00:30]} 8. Qxh5 {[%emt 0:00:30]} Be6 {[%emt 0:00:30]} 9. Qh2 {[%emt 0:00:30]} c5 {[%emt 0:00:30]} 10. Bc7 {[%emt 0:00:30]} Qc8 {[%emt 0:00:30]} 11. Na4 {[%emt 0:00:30]} Nd7 {[%emt 0:00:30]} 12. dxc5 {[%emt 0:00:30]} Bf5 {[%emt 0:00:30]} 13. O-O-O {[%emt 0:00:30]} e5 {[%emt 0:00:30]} 14. Bd6 {[%emt 0:00:30]} Qc6 {[%emt 0:00:30]} 15. Nc3 {[%emt 0:00:30]} Be6 {[%emt 0:00:30]} 16. Nf3 {[%emt 0:00:30]} f6 {[%emt 0:00:30]} 17. e4 {[%emt 0:00:30]} d4 {[%emt 0:00:30]} 18. Rxd4 {[%emt 0:00:30]} Nxc5 {[%emt 0:00:30]} 19. Nxe5 {[%emt 0:00:30]} fxe5 {[%emt 0:00:30]} 20. Qh5+ {[%emt 0:00:30]} Bf7 {[%emt 0:00:30]} 21. Qg5 {[%emt 0:00:30]} Bh6 {[%emt 0:00:30]} 22. Qxh6 {[%emt 0:00:30]} exd4 {[%emt 0:00:30]} 23. Qf6 {[%emt 0:00:30]} Kd7 {[%emt 0:00:30]} 24. Qxf7+ {[%emt 0:00:30]} Kc8 {[%emt 0:00:30]} 25. Be5 {[%emt 0:00:30]} Re8 {[%emt 0:00:30]} 26. Bxd4 {[%emt 0:00:30]} Nxe4 {[%emt 0:00:30]} 27. Nd5 {[%emt 0:00:30]} Nd6 {[%emt 0:00:30]} 28. Nb6+ {[%emt 0:00:30]} Kb8 {[%emt 0:00:30]} 29. Nd7+ {[%emt 0:00:30]} Kc7 {[%emt 0:00:30]} 30. Qg7 {[%emt 0:00:30]} Qxd7 {[%emt 0:00:30]} 31. Bb6+ {[%emt 0:00:30]} Kc8 {[%emt 0:00:30]} 32. Qc3+ {[%emt 0:00:30]} Qc6 {[%emt 0:00:30]} 33. Qh3+ {[%emt 0:00:30]} Kb8 {[%emt 0:00:30]} 34. Be3 {[%emt 0:00:30]} Qc7 {[%emt 0:00:30]} 35. Bd3 {[%emt 0:00:30]} b6 {[%emt 0:00:30]} 36. a4 {[%emt 0:00:30]} Ka7 {[%emt 0:00:30]} 37. Bd4 {[%emt 0:00:30]} Nb7 {[%emt 0:00:30]} 38. b4 {[%emt 0:00:30]} Qf4+ {[%emt 0:00:30]} 39. Be3 {[%emt 0:00:30]} Qxb4 {[%emt 0:00:30]} 40. Qxh7 {[%emt 0:00:30]} 0-1